[Event "2026 European Womens Championship"]
[Site "Batumi, GE"]
[Date "2026.05.26"]
[Round "2"]
[White "Pogorelskikh, Sofia"]
[Black "Poliakova, Varvara"]
[Result "0-1"]
[Board "26"]
[TimeControl "5400+30"]
[WhiteFideId "44164548"]
[BlackFideId "13518313"]
[WhiteElo "2284"]
[BlackElo "2108"]
[WhiteTitle "WGM"]
[BlackTitle "WFM"]
[WhiteClock "0:20:59"]
[BlackClock "0:01:26"]
[Variant "Standard"]

1. e4 {[%clk 1:30:56]}  c5 {[%clk 1:30:14]} 2. Nf3 {[%clk 1:31:14]}  d6 {[%clk 1:30:22]} 3. d4 {[%clk 1:31:25]}  cxd4 {[%clk 1:30:47]}
4. Nxd4 {[%clk 1:31:43]}  Nf6 {[%clk 1:31:11]} 5. Nc3 {[%clk 1:32:03]}  a6 {[%clk 1:30:52]} 6. Be2 {[%clk 1:32:20]}  e5 {[%clk 1:29:48]}
7. Nb3 {[%clk 1:32:37]}  Be7 {[%clk 1:28:12]} 8. Be3 {[%clk 1:32:26]}  Be6 {[%clk 1:27:17]} 9. Bf3 {[%clk 1:32:26]}  O-O {[%clk 1:22:36]}
10. a4 {[%clk 1:28:51]}  Nbd7 {[%clk 1:17:03]} 11. a5 {[%clk 1:28:47]}  b5 {[%clk 1:11:11]} 12. axb6 {[%clk 1:28:32]}  Nxb6 {[%clk 1:11:37]}
13. Na5 {[%clk 1:25:50]}  Qc7 {[%clk 1:04:45]} 14. O-O {[%clk 1:21:18]}  Rfd8 {[%clk 1:02:51]} 15. Nd5 {[%clk 1:15:21]}  Bxd5 {[%clk 0:58:39]}
16. exd5 {[%clk 1:15:27]}  e4 {[%clk 0:57:40]} 17. Bxb6 {[%clk 1:10:03]}  Qxb6 {[%clk 0:58:07]} 18. Be2 {[%clk 0:58:11]}  Qxb2 {[%clk 0:53:04]}
19. Nc6 {[%clk 0:36:10]}  Re8 {[%clk 0:52:13]} 20. Qd2 {[%clk 0:26:37]}  Nd7 {[%clk 0:46:11]} 21. Rfb1 {[%clk 0:24:07]}  Qf6 {[%clk 0:46:25]}
22. Rxa6 {[%clk 0:23:37]}  Bf8 {[%clk 0:40:31]} 23. Qd4 {[%clk 0:19:01]}  Rxa6 {[%clk 0:37:51]} 24. Bxa6 {[%clk 0:19:10]}  Qg5 {[%clk 0:35:53]}
25. Re1 {[%clk 0:17:34]}  Nc5 {[%clk 0:35:26]} 26. Bb5 {[%clk 0:16:23]}  g6 {[%clk 0:34:00]} 27. Qe3 {[%clk 0:15:11]}  Qxe3 {[%clk 0:30:26]}
28. fxe3 {[%clk 0:15:03]}  Ra8 {[%clk 0:29:26]} 29. Nd4 {[%clk 0:14:09]}  Ra3 {[%clk 0:27:00]} 30. Kf2 {[%clk 0:10:44]}  Bh6 {[%clk 0:25:27]}
31. Bc6 {[%clk 0:10:25]}  Kf8 {[%clk 0:21:00]} 32. h4 {[%clk 0:08:19]}  f5 {[%clk 0:19:06]} 33. Ne6+ {[%clk 0:06:17]}  Nxe6 {[%clk 0:18:05]}
34. dxe6 {[%clk 0:06:40]}  Rc3 {[%clk 0:16:27]} 35. Ba4 {[%clk 0:06:56]}  Ke7 {[%clk 0:12:20]} 36. Bb3 {[%clk 0:07:10]}  Kf6 {[%clk 0:08:44]}
37. Re2 {[%clk 0:06:53]}  g5 {[%clk 0:06:57]} 38. Rd2 {[%clk 0:03:02]}  g4 {[%clk 0:04:45]} 39. Rxd6 {[%clk 0:02:14]}  Bxe3+ {[%clk 0:03:36]}
40. Kf1 {[%clk 0:01:52]}  Bc5 {[%clk 0:01:23]} 41. Rc6 {[%clk 0:27:36]}  Bb4 {[%clk 0:27:59]} 42. e7+ {[%clk 0:13:55]}  Kxe7 {[%clk 0:28:24]}
43. Rxc3 {[%clk 0:08:24]}  Bxc3 {[%clk 0:28:50]} 44. g3 {[%clk 0:07:52]}  Kd6 {[%clk 0:28:43]} 45. Ba4 {[%clk 0:07:42]}  Bf6 {[%clk 0:23:39]}
46. h5 {[%clk 0:05:46]}  h6 {[%clk 0:23:29]} 47. Bb5 {[%clk 0:05:11]}  Be5 {[%clk 0:20:58]} 48. Kf2 {[%clk 0:05:12]}  Ke6 {[%clk 0:20:00]}
49. Bc6 {[%clk 0:04:35]}  Kf6 {[%clk 0:20:16]} 50. Bd7 {[%clk 0:04:23]}  Kg5 {[%clk 0:20:42]} 51. Be8 {[%clk 0:03:04]}  e3+ {[%clk 0:19:30]}
52. Kxe3 {[%clk 0:03:17]}  Bxg3 {[%clk 0:19:57]} 53. Ke2 {[%clk 0:02:44]}  Bd6 {[%clk 0:20:07]} 54. Bg6 {[%clk 0:02:18]}  f4 {[%clk 0:20:32]}
55. Be8 {[%clk 0:01:46]}  f3+ {[%clk 0:20:42]} 56. Ke3 {[%clk 0:01:44]}  Kh4 {[%clk 0:19:48]} 57. Bc6 {[%clk 0:01:51]}  Kg3 {[%clk 0:20:13]}
58. Bb5 {[%clk 0:01:12]}  Bc5+ {[%clk 0:20:34]} 59. Ke4 {[%clk 0:01:26]}  Kf2 {[%clk 0:20:59]} 0-1

[Event "2026 European Womens Championship"]
[Site "Batumi, GE"]
[Date "2026.05.26"]
[Round "2"]
[White "Hayrapetyan, Nvard"]
[Black "Schneider, Jana"]
[Result "0-1"]
[Board "27"]
[TimeControl "5400+30"]
[WhiteFideId "13316460"]
[BlackFideId "12924997"]
[WhiteElo "2057"]
[BlackElo "2283"]
[WhiteTitle "WFM"]
[BlackTitle "WGM"]
[WhiteClock "0:16:38"]
[BlackClock "0:26:45"]
[Variant "Standard"]

1. d4 {[%clk 1:30:58]}  d5 {[%clk 1:30:35]} 2. c4 {[%clk 1:31:24]}  e6 {[%clk 1:31:00]} 3. Nc3 {[%clk 1:31:51]}  Nf6 {[%clk 1:31:20]}
4. cxd5 {[%clk 1:32:15]}  exd5 {[%clk 1:31:41]} 5. Bg5 {[%clk 1:32:40]}  Be7 {[%clk 1:31:20]} 6. e3 {[%clk 1:32:16]}  O-O {[%clk 1:31:26]}
7. Bd3 {[%clk 1:32:37]}  h6 {[%clk 1:31:33]} 8. Bh4 {[%clk 1:32:53]}  Re8 {[%clk 1:30:59]} 9. Nf3 {[%clk 1:33:01]}  c6 {[%clk 1:26:24]}
10. Bg3 {[%clk 1:32:54]}  Nbd7 {[%clk 1:21:52]} 11. h3 {[%clk 1:30:16]}  b5 {[%clk 1:20:52]} 12. Rc1 {[%clk 1:25:30]}  a6 {[%clk 1:16:50]}
13. O-O {[%clk 1:23:10]}  Bb7 {[%clk 1:15:54]} 14. Bb1 {[%clk 1:08:51]}  Rc8 {[%clk 1:11:36]} 15. Ne5 {[%clk 1:06:22]}  c5 {[%clk 1:05:06]}
16. f4 {[%clk 1:01:23]}  Qb6 {[%clk 0:51:14]} 17. Qc2 {[%clk 0:55:04]}  Nf8 {[%clk 0:49:01]} 18. Qf2 {[%clk 0:51:09]}  Ne4 {[%clk 0:42:34]}
19. Nxe4 {[%clk 0:50:24]}  dxe4 {[%clk 0:43:01]} 20. f5 {[%clk 0:44:23]}  cxd4 {[%clk 0:39:52]} 21. exd4 {[%clk 0:44:09]}  Rxc1 {[%clk 0:36:54]}
22. Rxc1 {[%clk 0:44:31]}  Rd8 {[%clk 0:36:10]} 23. Nxf7 {[%clk 0:34:13]}  Kxf7 {[%clk 0:33:46]} 24. Bc7 {[%clk 0:34:36]}  Qxd4 {[%clk 0:32:10]}
25. Bxd8 {[%clk 0:34:54]}  Qxf2+ {[%clk 0:30:51]} 26. Kxf2 {[%clk 0:35:23]}  Bxd8 {[%clk 0:31:10]} 27. Rd1 {[%clk 0:33:19]}  Bb6+ {[%clk 0:30:43]}
28. Ke2 {[%clk 0:33:35]}  Ke7 {[%clk 0:29:10]} 29. Bc2 {[%clk 0:32:14]}  Nd7 {[%clk 0:21:07]} 30. Bb3 {[%clk 0:32:11]}  Nf6 {[%clk 0:20:50]}
31. g4 {[%clk 0:32:08]}  e3 {[%clk 0:20:54]} 32. Rg1 {[%clk 0:31:33]}  Ne4 {[%clk 0:20:38]} 33. h4 {[%clk 0:30:39]}  Nd2 {[%clk 0:19:28]}
34. Bg8 {[%clk 0:25:45]}  Bf3+ {[%clk 0:18:13]} 35. Kd3 {[%clk 0:25:46]}  e2 {[%clk 0:16:33]} 36. Re1 {[%clk 0:25:55]}  Ne4 {[%clk 0:15:30]}
37. Rxe2 {[%clk 0:25:46]}  Bxe2+ {[%clk 0:15:52]} 38. Kxe2 {[%clk 0:26:13]}  Nf6 {[%clk 0:15:54]} 39. Be6 {[%clk 0:25:27]}  Nxg4 {[%clk 0:16:14]}
40. Bc8 {[%clk 0:25:54]}  a5 {[%clk 0:16:31]} 41. Ba6 {[%clk 0:26:18]}  b4 {[%clk 0:16:55]} 42. Kd3 {[%clk 0:26:45]}  Ne3 {[%clk 0:16:38]} 0-1

[Event "2026 European Womens Championship"]
[Site "Batumi, GE"]
[Date "2026.05.26"]
[Round "2"]
[White "Velikic, Adela"]
[Black "Tsiganova, Monika"]
[Result "1-0"]
[Board "28"]
[TimeControl "5400+30"]
[WhiteFideId "913553"]
[BlackFideId "4500199"]
[WhiteElo "2277"]
[BlackElo "2039"]
[WhiteTitle "WIM"]
[BlackTitle "WIM"]
[WhiteClock "0:01:24"]
[BlackClock "0:03:54"]
[Variant "Standard"]

1. e4 {[%clk 1:30:45]}  e5 {[%clk 1:29:10]} 2. Nf3 {[%clk 1:31:08]}  Nc6 {[%clk 1:29:32]} 3. Bb5 {[%clk 1:31:31]}  Nf6 {[%clk 1:29:20]}
4. d3 {[%clk 1:31:39]}  Bc5 {[%clk 1:28:22]} 5. Bxc6 {[%clk 1:31:52]}  dxc6 {[%clk 1:27:16]} 6. O-O {[%clk 1:32:10]}  Bg4 {[%clk 1:21:58]}
7. h3 {[%clk 1:26:04]}  Bxf3 {[%clk 1:07:43]} 8. Qxf3 {[%clk 1:26:25]}  Qd6 {[%clk 1:04:03]} 9. Nd2 {[%clk 1:18:55]}  h6 {[%clk 0:55:07]}
10. Nc4 {[%clk 1:08:40]}  Qe6 {[%clk 0:54:56]} 11. Bd2 {[%clk 0:55:25]}  O-O-O {[%clk 0:48:52]} 12. b4 {[%clk 0:51:34]}  Be7 {[%clk 0:48:12]}
13. Bc3 {[%clk 0:45:42]}  Nd7 {[%clk 0:48:08]} 14. a4 {[%clk 0:45:22]}  h5 {[%clk 0:46:22]} 15. b5 {[%clk 0:38:44]}  f6 {[%clk 0:43:11]}
16. Rfb1 {[%clk 0:36:07]}  c5 {[%clk 0:38:39]} 17. a5 {[%clk 0:33:07]}  Kb8 {[%clk 0:35:03]} 18. Ne3 {[%clk 0:23:23]}  Rc8 {[%clk 0:33:12]}
19. Rb2 {[%clk 0:21:41]}  Bd8 {[%clk 0:32:20]} 20. Bd2 {[%clk 0:18:36]}  g6 {[%clk 0:30:35]} 21. Nc4 {[%clk 0:17:02]}  Rh7 {[%clk 0:24:11]}
22. Bc3 {[%clk 0:16:07]}  g5 {[%clk 0:19:05]} 23. Ne3 {[%clk 0:14:26]}  Be7 {[%clk 0:18:44]} 24. Qf5 {[%clk 0:10:58]}  Qxf5 {[%clk 0:15:44]}
25. Nxf5 {[%clk 0:10:09]}  Nf8 {[%clk 0:15:21]} 26. Bd2 {[%clk 0:07:38]}  Ne6 {[%clk 0:15:07]} 27. Ra4 {[%clk 0:05:03]}  Rg8 {[%clk 0:14:02]}
28. Be3 {[%clk 0:03:08]}  h4 {[%clk 0:10:55]} 29. Kh2 {[%clk 0:00:39]}  Bf8 {[%clk 0:08:39]} 30. Rc4 {[%clk 0:01:07]}  Rd7 {[%clk 0:04:52]}
31. Ra2 {[%clk 0:00:43]}  Bd6 {[%clk 0:04:22]} 32. Kg1 {[%clk 0:00:40]}  Rc8 {[%clk 0:02:37]} 33. a6 {[%clk 0:00:35]}  b6 {[%clk 0:02:54]}
34. Kf1 {[%clk 0:00:39]}  Bf8 {[%clk 0:02:39]} 35. Rb2 {[%clk 0:00:40]}  c6 {[%clk 0:01:34]} 36. bxc6 {[%clk 0:00:37]}  Rxc6 {[%clk 0:01:57]}
37. Ke2 {[%clk 0:00:38]}  Nc7 {[%clk 0:02:14]} 38. Ra4 {[%clk 0:00:37]}  b5 {[%clk 0:01:57]} 39. Ra5 {[%clk 0:00:42]}  Ka8 {[%clk 0:01:55]}
40. c3 {[%clk 0:00:40]}  Rd8 {[%clk 0:02:07]} 41. d4 {[%clk 0:23:34]}  exd4 {[%clk 0:23:43]} 42. cxd4 {[%clk 0:23:58]}  c4 {[%clk 0:22:13]}
43. d5 {[%clk 0:19:58]}  c3 {[%clk 0:08:02]} 44. Rbxb5 {[%clk 0:17:53]}  Rxa6 {[%clk 0:07:34]} 45. Rxa6 {[%clk 0:16:05]}  Nxa6 {[%clk 0:07:52]}
46. Nd4 {[%clk 0:14:17]}  Bd6 {[%clk 0:05:41]} 47. Nc6 {[%clk 0:12:35]}  Re8 {[%clk 0:04:55]} 48. f3 {[%clk 0:09:00]}  Nc7 {[%clk 0:04:58]}
49. Ra5 {[%clk 0:04:32]}  a6 {[%clk 0:05:20]} 50. Kd3 {[%clk 0:04:02]}  Kb7 {[%clk 0:05:31]} 51. Ra1 {[%clk 0:03:00]}  Nb5 {[%clk 0:05:05]}
52. Na5+ {[%clk 0:02:17]}  Kc7 {[%clk 0:04:10]} 53. Nc4 {[%clk 0:02:29]}  Ra8 {[%clk 0:04:32]} 54. Bb6+ {[%clk 0:01:56]}  Kb7 {[%clk 0:03:03]}
55. Nxd6+ {[%clk 0:00:41]}  Kxb6 {[%clk 0:03:02]} 56. Nxb5 {[%clk 0:00:43]}  Kxb5 {[%clk 0:03:27]} 57. Rb1+ {[%clk 0:00:35]}  Kc5 {[%clk 0:03:50]}
58. Kxc3 {[%clk 0:00:37]}  a5 {[%clk 0:04:15]} 59. Rb7 {[%clk 0:00:34]}  Ra6 {[%clk 0:04:35]} 60. Rc7+ {[%clk 0:00:39]}  Kd6 {[%clk 0:04:27]}
61. Rc8 {[%clk 0:00:37]}  Kd7 {[%clk 0:03:09]} 62. Rc4 {[%clk 0:00:45]}  a4 {[%clk 0:02:41]} 63. Kb2 {[%clk 0:00:59]}  Rb6+ {[%clk 0:02:43]}
64. Ka2 {[%clk 0:00:48]}  Ra6 {[%clk 0:02:46]} 65. Ka3 {[%clk 0:01:04]}  Rb6 {[%clk 0:02:59]} 66. Rb4 {[%clk 0:00:57]}  Ra6 {[%clk 0:02:45]}
67. Rxa4 {[%clk 0:01:22]}  Rb6 {[%clk 0:03:11]} 68. Rb4 {[%clk 0:01:22]}  Ra6+ {[%clk 0:03:34]} 69. Kb2 {[%clk 0:01:30]}  Kd6 {[%clk 0:03:50]}
70. Rc4 {[%clk 0:01:40]}  Rb6+ {[%clk 0:02:36]} 71. Kc2 {[%clk 0:01:46]}  Ra6 {[%clk 0:02:45]} 72. Kd3 {[%clk 0:01:51]}  Ra3+ {[%clk 0:02:49]}
73. Rc3 {[%clk 0:02:08]}  Ra2 {[%clk 0:03:13]} 74. Rc6+ {[%clk 0:01:00]}  Ke7 {[%clk 0:03:32]} 75. Rc2 {[%clk 0:00:55]}  Ra3+ {[%clk 0:03:22]}
76. Kd4 {[%clk 0:01:10]}  Ra4+ {[%clk 0:03:40]} 77. Kc5 {[%clk 0:01:14]}  Ra5+ {[%clk 0:03:21]} 78. Kb6 {[%clk 0:01:24]}  Ra1 {[%clk 0:03:27]}
79. Rc7+ {[%clk 0:00:58]}  Ke8 {[%clk 0:03:07]} 80. Kc6 {[%clk 0:00:37]}  Ra6+ {[%clk 0:03:31]} 81. Kc5 {[%clk 0:01:02]}  Ra2 {[%clk 0:03:45]}
82. Kd6 {[%clk 0:01:05]}  Rxg2 {[%clk 0:03:57]} 83. Ke6 {[%clk 0:01:14]}  Kd8 {[%clk 0:04:17]} 84. d6 {[%clk 0:01:21]}  Ra2 {[%clk 0:04:13]}
85. Rh7 {[%clk 0:01:05]}  Kc8 {[%clk 0:03:54]} 86. Rh8+ {[%clk 0:01:24]} 1-0

[Event "2026 European Womens Championship"]
[Site "Batumi, GE"]
[Date "2026.05.26"]
[Round "2"]
[White "Tsirulnik, Maritsa"]
[Black "Mirzoeva, Elmira"]
[Result "0-1"]
[Board "29"]
[TimeControl "5400+30"]
[WhiteFideId "14118688"]
[BlackFideId "4127951"]
[WhiteElo "2028"]
[BlackElo "2265"]
[WhiteTitle "WFM"]
[BlackTitle "WGM"]
[WhiteClock "0:15:23"]
[BlackClock "0:02:26"]
[Variant "Standard"]

1. c4 {[%clk 1:30:57]}  d6 {[%clk 1:30:01]} 2. Nc3 {[%clk 1:30:49]}  e5 {[%clk 1:26:48]} 3. g3 {[%clk 1:30:59]}  g6 {[%clk 1:25:54]}
4. Bg2 {[%clk 1:31:17]}  Bg7 {[%clk 1:26:10]} 5. d3 {[%clk 1:28:25]}  f5 {[%clk 1:25:56]} 6. e4 {[%clk 1:27:22]}  Nc6 {[%clk 1:24:12]}
7. Nge2 {[%clk 1:25:47]}  Nf6 {[%clk 1:17:14]} 8. O-O {[%clk 1:24:14]}  O-O {[%clk 1:16:50]} 9. exf5 {[%clk 1:06:22]}  Bxf5 {[%clk 1:14:44]}
10. h3 {[%clk 1:02:25]}  Qd7 {[%clk 0:50:09]} 11. Kh2 {[%clk 0:52:38]}  Nb4 {[%clk 0:45:43]} 12. Ne4 {[%clk 0:51:33]}  Nxe4 {[%clk 0:42:55]}
13. dxe4 {[%clk 0:51:57]}  Be6 {[%clk 0:43:19]} 14. b3 {[%clk 0:50:54]}  c5 {[%clk 0:33:18]} 15. Be3 {[%clk 0:47:43]}  Nc6 {[%clk 0:33:15]}
16. Rc1 {[%clk 0:46:34]}  Rf7 {[%clk 0:32:52]} 17. Qd2 {[%clk 0:36:37]}  Raf8 {[%clk 0:31:44]} 18. a3 {[%clk 0:28:48]}  Nd4 {[%clk 0:31:07]}
19. Nxd4 {[%clk 0:29:09]}  cxd4 {[%clk 0:30:56]} 20. Bg5 {[%clk 0:29:06]}  b5 {[%clk 0:30:06]} 21. cxb5 {[%clk 0:25:32]}  Qxb5 {[%clk 0:28:05]}
22. Rb1 {[%clk 0:24:41]}  Bxb3 {[%clk 0:19:59]} 23. f4 {[%clk 0:24:33]}  h6 {[%clk 0:18:08]} 24. Rf3 {[%clk 0:24:35]}  hxg5 {[%clk 0:16:57]}
25. Rbxb3 {[%clk 0:24:40]}  Qa4 {[%clk 0:12:32]} 26. fxg5 {[%clk 0:23:36]}  Rxf3 {[%clk 0:12:45]} 27. Rxf3 {[%clk 0:23:59]}  Rxf3 {[%clk 0:12:36]}
28. Bxf3 {[%clk 0:24:24]}  Qxa3 {[%clk 0:12:35]} 29. Be2 {[%clk 0:23:46]}  Qc3 {[%clk 0:08:10]} 30. Qd3 {[%clk 0:22:20]}  a5 {[%clk 0:07:59]}
31. Kg2 {[%clk 0:21:34]}  a4 {[%clk 0:06:49]} 32. Qc4+ {[%clk 0:21:17]}  Kh7 {[%clk 0:05:58]} 33. Qxa4 {[%clk 0:20:30]}  d3 {[%clk 0:05:18]}
34. Bd1 {[%clk 0:20:51]}  Qd2+ {[%clk 0:03:53]} 35. Kf3 {[%clk 0:19:41]}  Qxg5 {[%clk 0:04:18]} 36. Qb4 {[%clk 0:16:25]}  Qh5+ {[%clk 0:03:10]}
37. g4 {[%clk 0:16:49]}  Qxh3+ {[%clk 0:03:21]} 38. Kf2 {[%clk 0:17:14]}  Qh2+ {[%clk 0:01:52]} 39. Ke3 {[%clk 0:15:23]}  Qg1+ {[%clk 0:02:09]}
40. Kd2 {[%clk 0:15:23]}  Bh6+ {[%clk 0:02:26]} 0-1

[Event "2026 European Womens Championship"]
[Site "Batumi, GE"]
[Date "2026.05.26"]
[Round "2"]
[White "Urh, Zala"]
[Black "Kobak, Polina"]
[Result "0-1"]
[Board "30"]
[TimeControl "5400+30"]
[WhiteFideId "14611481"]
[BlackFideId "24269727"]
[WhiteElo "2263"]
[BlackElo "1986"]
[WhiteTitle "WIM"]
[BlackTitle "WFM"]
[WhiteClock "0:00:34"]
[BlackClock "0:00:40"]
[Variant "Standard"]

1. d4 {[%clk 1:30:59]}  d5 {[%clk 1:30:53]} 2. c4 {[%clk 1:31:18]}  c5 {[%clk 1:31:10]} 3. cxd5 {[%clk 1:22:43]}  Qxd5 {[%clk 1:31:32]}
4. Nf3 {[%clk 1:19:23]}  cxd4 {[%clk 1:31:53]} 5. Nc3 {[%clk 1:17:19]}  Qa5 {[%clk 1:32:16]} 6. Nxd4 {[%clk 1:15:56]}  Nf6 {[%clk 1:32:38]}
7. Bd2 {[%clk 1:00:11]}  e5 {[%clk 1:31:44]} 8. Nb3 {[%clk 0:56:29]}  Qb6 {[%clk 1:07:36]} 9. Rc1 {[%clk 0:43:10]}  Nc6 {[%clk 1:00:21]}
10. Be3 {[%clk 0:38:54]}  Qc7 {[%clk 0:54:52]} 11. g3 {[%clk 0:32:45]}  Be6 {[%clk 0:47:26]} 12. Bg2 {[%clk 0:27:23]}  Bb4 {[%clk 0:46:13]}
13. O-O {[%clk 0:24:07]}  O-O {[%clk 0:28:21]} 14. Nc5 {[%clk 0:22:18]}  Bxc5 {[%clk 0:27:47]} 15. Bxc5 {[%clk 0:21:13]}  Rfd8 {[%clk 0:27:39]}
16. Qa4 {[%clk 0:20:47]}  Nd7 {[%clk 0:22:29]} 17. b4 {[%clk 0:08:53]}  Nxc5 {[%clk 0:16:53]} 18. bxc5 {[%clk 0:09:19]}  a6 {[%clk 0:16:13]}
19. e3 {[%clk 0:09:28]}  f5 {[%clk 0:11:07]} 20. Rfd1 {[%clk 0:07:39]}  e4 {[%clk 0:10:54]} 21. Ne2 {[%clk 0:06:42]}  Qf7 {[%clk 0:09:23]}
22. Nd4 {[%clk 0:03:15]}  Nxd4 {[%clk 0:08:12]} 23. Rxd4 {[%clk 0:03:41]}  Rxd4 {[%clk 0:07:55]} 24. Qxd4 {[%clk 0:03:26]}  Bxa2 {[%clk 0:08:18]}
25. Bf1 {[%clk 0:01:52]}  a5 {[%clk 0:06:22]} 26. c6 {[%clk 0:00:58]}  bxc6 {[%clk 0:06:40]} 27. Rxc6 {[%clk 0:01:26]}  a4 {[%clk 0:04:42]}
28. Qc3 {[%clk 0:01:19]}  h6 {[%clk 0:03:51]} 29. Rc7 {[%clk 0:00:44]}  Qf6 {[%clk 0:03:05]} 30. Qa3 {[%clk 0:00:37]}  Bb3 {[%clk 0:02:42]}
31. Bb5 {[%clk 0:00:48]}  Qf8 {[%clk 0:01:53]} 32. Qb2 {[%clk 0:01:03]}  Qf6 {[%clk 0:01:42]} 33. Qa3 {[%clk 0:01:30]}  Kh7 {[%clk 0:00:57]}
34. Kg2 {[%clk 0:00:53]}  Qe5 {[%clk 0:00:45]} 35. Rc5 {[%clk 0:00:35]}  Qd6 {[%clk 0:00:49]} 36. Bc6 {[%clk 0:00:34]}  Ra5 {[%clk 0:00:40]} 0-1

[Event "2026 European Womens Championship"]
[Site "Batumi, GE"]
[Date "2026.05.26"]
[Round "2"]
[White "Ushenina, Anna"]
[Black "Ashotia, Barbare"]
[Result "1-0"]
[Board "32"]
[TimeControl "5400+30"]
[WhiteFideId "14110911"]
[BlackFideId "13625187"]
[WhiteElo "2420"]
[BlackElo "1913"]
[WhiteTitle "GM"]
[WhiteClock "0:01:15"]
[BlackClock "0:00:34"]
[Variant "Standard"]

1. d4 {[%clk 1:30:48]}  Nf6 {[%clk 1:30:41]} 2. c4 {[%clk 1:30:49]}  e6 {[%clk 1:30:43]} 3. Nc3 {[%clk 1:30:56]}  Bb4 {[%clk 1:30:47]}
4. e3 {[%clk 1:30:52]}  O-O {[%clk 1:29:15]} 5. Bd3 {[%clk 1:30:56]}  d5 {[%clk 1:27:30]} 6. a3 {[%clk 1:29:44]}  dxc4 {[%clk 1:24:26]}
7. Bxc4 {[%clk 1:29:59]}  Be7 {[%clk 1:24:18]} 8. Qe2 {[%clk 1:21:11]}  c5 {[%clk 1:22:01]} 9. dxc5 {[%clk 1:21:27]}  Bxc5 {[%clk 1:22:01]}
10. Nf3 {[%clk 1:21:35]}  Nc6 {[%clk 1:19:51]} 11. b4 {[%clk 1:20:04]}  Bb6 {[%clk 1:17:40]} 12. O-O {[%clk 1:12:17]}  e5 {[%clk 1:08:04]}
13. Qc2 {[%clk 1:02:44]}  Qe7 {[%clk 1:01:43]} 14. Ng5 {[%clk 0:56:18]}  g6 {[%clk 0:57:36]} 15. Bd3 {[%clk 0:51:01]}  Rd8 {[%clk 0:46:34]}
16. Bb2 {[%clk 0:46:58]}  h6 {[%clk 0:40:44]} 17. Nge4 {[%clk 0:46:19]}  Nxe4 {[%clk 0:39:20]} 18. Bxe4 {[%clk 0:45:10]}  Be6 {[%clk 0:30:03]}
19. Rfd1 {[%clk 0:21:01]}  Rxd1+ {[%clk 0:18:54]} 20. Rxd1 {[%clk 0:21:24]}  Qg5 {[%clk 0:16:24]} 21. Nd5 {[%clk 0:17:54]}  Bd8 {[%clk 0:16:16]}
22. f4 {[%clk 0:16:54]}  Qh5 {[%clk 0:14:07]} 23. b5 {[%clk 0:16:59]}  Na5 {[%clk 0:08:28]} 24. Bxe5 {[%clk 0:15:06]}  Bf5 {[%clk 0:05:40]}
25. Bxf5 {[%clk 0:13:25]}  Qxf5 {[%clk 0:05:49]} 26. e4 {[%clk 0:09:05]}  Qe6 {[%clk 0:04:26]} 27. Rc1 {[%clk 0:08:31]}  Kh7 {[%clk 0:03:16]}
28. Kh1 {[%clk 0:07:04]}  b6 {[%clk 0:02:36]} 29. Bb2 {[%clk 0:07:04]}  f6 {[%clk 0:01:33]} 30. h3 {[%clk 0:05:56]}  h5 {[%clk 0:01:46]}
31. Qc3 {[%clk 0:02:14]}  Kg7 {[%clk 0:00:53]} 32. f5 {[%clk 0:01:16]}  gxf5 {[%clk 0:00:45]} 33. Qg3+ {[%clk 0:01:37]}  Kf8 {[%clk 0:00:34]}
34. Nc7 {[%clk 0:01:15]} 1-0

[Event "2026 European Womens Championship"]
[Site "Batumi, GE"]
[Date "2026.05.26"]
[Round "2"]
[White "Gueci, Tea"]
[Black "Khotenashvili, Bella"]
[Result "0-1"]
[Board "33"]
[TimeControl "5400+30"]
[WhiteFideId "872342"]
[BlackFideId "13602640"]
[WhiteElo "2160"]
[BlackElo "2415"]
[WhiteTitle "WIM"]
[BlackTitle "GM"]
[WhiteClock "0:24:23"]
[BlackClock "0:28:31"]
[Variant "Standard"]

1. e4 {[%clk 1:30:59]}  c6 {[%clk 1:30:52]} 2. d4 {[%clk 1:31:25]}  d5 {[%clk 1:31:15]} 3. e5 {[%clk 1:31:51]}  c5 {[%clk 1:31:39]}
4. Nf3 {[%clk 1:32:17]}  e6 {[%clk 1:31:33]} 5. c3 {[%clk 1:32:24]}  Nc6 {[%clk 1:31:26]} 6. Bd3 {[%clk 1:31:11]}  Qb6 {[%clk 1:28:14]}
7. O-O {[%clk 1:30:44]}  cxd4 {[%clk 1:28:06]} 8. Re1 {[%clk 1:19:40]}  Bd7 {[%clk 1:10:35]} 9. h4 {[%clk 1:20:04]}  Nge7 {[%clk 1:04:19]}
10. h5 {[%clk 1:16:32]}  h6 {[%clk 0:56:45]} 11. Nbd2 {[%clk 1:15:32]}  g5 {[%clk 0:49:54]} 12. hxg6 {[%clk 0:52:36]}  Nxg6 {[%clk 0:42:21]}
13. Nb3 {[%clk 0:52:13]}  dxc3 {[%clk 0:37:36]} 14. bxc3 {[%clk 0:52:38]}  Rg8 {[%clk 0:36:27]} 15. Rb1 {[%clk 0:48:50]}  Qc7 {[%clk 0:30:38]}
16. Qe2 {[%clk 0:45:00]}  a6 {[%clk 0:30:36]} 17. a4 {[%clk 0:43:37]}  Rc8 {[%clk 0:25:47]} 18. Bd2 {[%clk 0:41:11]}  Nd8 {[%clk 0:14:04]}
19. a5 {[%clk 0:36:38]}  Nc6 {[%clk 0:14:22]} 20. Ra1 {[%clk 0:23:09]}  Qd8 {[%clk 0:11:17]} 21. Bxg6 {[%clk 0:12:36]}  Rxg6 {[%clk 0:11:14]}
22. Be3 {[%clk 0:13:01]}  Nb8 {[%clk 0:03:23]} 23. Bb6 {[%clk 0:13:27]}  Qe7 {[%clk 0:03:49]} 24. Qe3 {[%clk 0:13:29]}  Bb5 {[%clk 0:03:29]}
25. Nbd4 {[%clk 0:10:40]}  Bc4 {[%clk 0:03:41]} 26. Ne2 {[%clk 0:09:00]}  Bxe2 {[%clk 0:02:22]} 27. Rxe2 {[%clk 0:09:25]}  Rc4 {[%clk 0:01:12]}
28. Bd4 {[%clk 0:08:23]}  h5 {[%clk 0:01:20]} 29. Nd2 {[%clk 0:07:51]}  Bh6 {[%clk 0:01:15]} 30. Qh3 {[%clk 0:04:39]}  Bxd2 {[%clk 0:00:47]}
31. Rxd2 {[%clk 0:05:02]}  h4 {[%clk 0:00:41]} 32. Rd3 {[%clk 0:03:01]}  Nc6 {[%clk 0:00:56]} 33. f4 {[%clk 0:03:16]}  Rh6 {[%clk 0:00:35]}
34. Qg4 {[%clk 0:01:28]}  Kf8 {[%clk 0:00:35]} 35. Kf1 {[%clk 0:00:43]}  Nxd4 {[%clk 0:00:50]} 36. cxd4 {[%clk 0:01:08]}  Rc2 {[%clk 0:00:45]}
37. Rb1 {[%clk 0:00:40]}  Rg6 {[%clk 0:00:59]} 38. Qh3 {[%clk 0:00:46]}  Qc7 {[%clk 0:01:03]} 39. Qxh4 {[%clk 0:00:36]}  Rcxg2 {[%clk 0:01:11]}
40. Qh8+ {[%clk 0:00:44]}  Rg8 {[%clk 0:01:26]} 41. Qh6+ {[%clk 0:30:24]}  Ke8 {[%clk 0:28:29]} 42. Rbd1 {[%clk 0:24:23]}  Qc2 {[%clk 0:28:31]} 0-1